fUSD/lending_fUSD_20240119
["ID","MTS","AMOUNT","RATE_DAILY","PERIOD"]
[312139695,1705666346812,-500.0,0.00024641,2]
[312139696,1705666346825,-500.0,0.00024641,2]
[312139697,1705666346838,-500.0,0.00024641,2]
[312139698,1705666346851,-505.27,0.00024641,2]
[312139699,1705666346864,-500.0,0.00024641,2]
[312139700,1705666346877,-1361.89,0.00024641,2]
[312139701,1705666346891,-500.0,0.00024641,2]
[312139702,1705666347279,-500.0,0.00024641,2]
[312139703,1705666347301,-930.39,0.00024641,2]
[312139704,1705666347314,-500.0,0.00024641,2]
[312139705,1705666347326,-500.0,0.00024641,2]
[312139706,1705666347338,-500.0,0.00024641,2]
[312139707,1705666347351,-500.0,0.00024641,2]
[312139708,1705666347362,-500.0,0.00024641,2]
[312139709,1705666347373,-500.0,0.00024641,2]
[312139710,1705666347385,-987.25,0.00024641,2]
[312139711,1705666347397,-500.0,0.00024641,2]
[312139712,1705666347409,-500.0,0.00024641,2]
[312139713,1705666347421,-500.0,0.00024641,2]
[312139714,1705666347433,-500.0,0.00024641,2]
[312139715,1705666347444,-500.0,0.00024641,2]
[312139716,1705666347456,-500.0,0.00024641,2]
[312139717,1705666347467,-804.04,0.00024641,2]
[312139718,1705666347478,-500.0,0.00024641,2]
[312139719,1705666347490,-834.1,0.00024641,2]
[312139720,1705666347502,-500.0,0.00024641,2]
[312139721,1705666347514,-530.68,0.00024641,2]
[312139722,1705666347526,-500.0,0.00024641,2]
[312139723,1705666347538,-2493.17,0.00024641,2]
[312139724,1705666347549,-500.0,0.00024641,2]
[312139725,1705666347560,-882.8,0.00024641,2]
[312139726,1705666347572,-573.74,0.00024641,2]
[312139727,1705666347584,-500.0,0.00024641,2]
[312139728,1705666347595,-500.0,0.00024641,2]
[312139729,1705666347606,-615.64,0.00024641,2]
[312139730,1705666347617,-674.04,0.00024641,2]
[312139731,1705666347630,-500.0,0.00024641,2]
[312139732,1705666347641,-500.0,0.00024641,2]
[312139733,1705666347654,-1047.1,0.00024641,2]
[312139734,1705666347665,-500.0,0.00024641,2]
[312139735,1705666347677,-500.0,0.00024641,2]
[312139736,1705666347689,-500.0,0.00024641,2]
[312139737,1705666347699,-500.0,0.00024641,2]
[312139738,1705666347711,-830.43,0.00024641,2]
[312139739,1705666347722,-500.0,0.00024641,2]
[312139740,1705666347734,-500.0,0.00024641,2]
[312139741,1705666347746,-500.0,0.00024641,2]
[312139742,1705666347758,-634.94,0.00024641,2]
[312139743,1705666347770,-500.0,0.00024641,2]
[312139744,1705666347781,-833.55,0.00024641,2]
[312139745,1705666347793,-816.25,0.00024641,2]
[312139746,1705666347805,-500.0,0.00024641,2]
[312139747,1705666347816,-793.96,0.00024641,2]
[312139748,1705666347828,-500.0,0.00024641,2]
[312139749,1705666347840,-500.0,0.00024641,2]
[312139750,1705666347851,-500.0,0.00024641,2]
[312139751,1705666347863,-680.83,0.00024641,2]
[312139752,1705666347874,-500.0,0.00024641,2]
[312139753,1705666347886,-1052.77,0.00024641,2]
[312139754,1705666347898,-500.0,0.00024641,2]
[312139755,1705666347910,-500.0,0.00024641,2]
[312139756,1705666347921,-959.44,0.00024641,2]
[312139757,1705666347934,-500.0,0.00024641,2]
[312139758,1705666347946,-500.0,0.00024641,2]
[312139759,1705666347958,-500.0,0.00024641,2]
[312139760,1705666347970,-1805.01,0.00024641,2]
[312139761,1705666347981,-500.0,0.00024641,2]
[312139762,1705666347993,-500.0,0.00024641,2]
[312139763,1705666348004,-500.0,0.00024641,2]
[312139764,1705666348015,-2839.77,0.00024641,2]
[312139765,1705666348027,-790.25,0.00024641,2]
[312139766,1705666348038,-500.0,0.00024641,2]
[312139767,1705666348051,-520.62,0.00024641,2]
[312139768,1705666348063,-4249.75,0.00024641,2]
[312139769,1705666348080,-3411.47,0.00024641,2]
[312139770,1705666348091,-500.0,0.00024641,2]
[312139771,1705666348103,-2837.35,0.00024641,2]
[312139772,1705666348115,-500.0,0.00024641,2]
[312139773,1705666348127,-500.0,0.00024641,2]
[312139774,1705666348139,-5228.14,0.00024641,2]
[312139775,1705666348151,-931.26,0.00024641,2]
[312139776,1705666348163,-500.0,0.00024641,2]
[312139777,1705666348176,-528.67823295,0.00024641,2]
[312139778,1705666348188,-500.0,0.00024641,2]
[312139779,1705666348200,-1306.88,0.00024641,5]
[312139780,1705666348212,-500.0,0.00024641,2]
[312139781,1705666348225,-1111.12,0.00024641,2]
[312139782,1705666348237,-629.42,0.00024641,2]
[312139783,1705666348249,-4809.82,0.00024641,2]
[312139784,1705666348261,-500.0,0.00024641,2]
[312139785,1705666348274,-5302.03,0.00024641,2]
[312139786,1705666348285,-512.84546904,0.00024641,2]
[312139787,1705666348297,-548.62,0.00024641,2]
[312139788,1705666348308,-500.0,0.00024641,2]
[312139789,1705666348320,-500.0,0.00024641,2]
[312139790,1705666348332,-886.28,0.00024641,2]
[312139791,1705666348343,-877.94,0.00024641,2]
[312139792,1705666348355,-500.0,0.00024641,2]
[312139793,1705666348366,-724.04,0.00024641,2]
[312139794,1705666348378,-3371.7,0.00024641,2]
[312139795,1705666348389,-596.58,0.00024641,2]
[312139796,1705666348401,-500.0,0.00024641,2]
[312139797,1705666348413,-4400.66,0.00024641,2]
[312139798,1705666348426,-500.0,0.00024641,2]
[312139799,1705666348438,-500.0,0.00024641,2]
[312139800,1705666348450,-988.81,0.00024641,2]
[312139801,1705666348462,-827.84,0.00024641,2]
[312139802,1705666348474,-669.84,0.00024641,2]
[312139803,1705666348485,-500.0,0.00024641,2]
[312139804,1705666348497,-300.0,0.00024641,2]
[312139805,1705666348507,-558.63,0.00024641,2]
[312139806,1705666348519,-2045.96,0.00024641,2]
[312139807,1705666348531,-500.0,0.00024641,2]
[312139808,1705666348542,-3996.45,0.00024641,2]
[312139809,1705666348554,-500.0,0.00024641,2]
[312139810,1705666348567,-500.0,0.00024641,2]
[312139811,1705666348579,-612.06,0.00024641,2]
[312139812,1705666348591,-500.0,0.00024641,2]
[312139813,1705666348603,-500.0,0.00024641,2]
[312139814,1705666348614,-2049.86,0.00024641,2]
[312139815,1705666348626,-868.63,0.00024641,2]
[312139816,1705666348638,-591.26,0.00024641,2]
[312139817,1705666348650,-500.0,0.00024641,2]
[312139818,1705666348662,-500.0,0.00024641,2]
[312139819,1705666348674,-2549.06,0.00024641,2]
[312139820,1705666348686,-500.0,0.00024641,2]
[312139821,1705666348697,-587.35,0.00024641,2]
[312139822,1705666348708,-1768.63,0.00024641,2]
[312139823,1705666348720,-500.0,0.00024641,2]
[312139824,1705666348731,-500.0,0.00024641,2]
[312139825,1705666348743,-500.0,0.00024641,2]
[312139826,1705666348757,-1408.95,0.00024641,2]
[312139827,1705666348769,-500.0,0.00024641,2]
[312139828,1705666348782,-3266.27,0.00024641,2]
[312139829,1705666348794,-500.0,0.00024641,2]
[312139830,1705666348806,-1854.3,0.00024641,2]
[312139831,1705666348817,-500.0,0.00024641,2]
[312139832,1705666348829,-638.39,0.00024641,2]
[312139833,1705666348840,-500.0,0.00024641,2]
[312139834,1705666348852,-1678.82,0.00024641,2]
[312139835,1705666348863,-614.16,0.00024641,2]
[312139836,1705666348876,-854.41,0.00024641,2]
[312139837,1705666348887,-964.22,0.00024641,2]
[312139838,1705666348899,-1518.27,0.00024641,2]
[312139839,1705666348910,-500.0,0.00024641,2]
[312139840,1705666348921,-2179.92,0.00024641,2]
[312139841,1705666348934,-500.0,0.00024641,2]
[312139842,1705666348945,-500.0,0.00024642,2]
[312139843,1705666348957,-588.64,0.00024642,2]
[312139844,1705666348969,-500.0,0.00024642,2]
[312139845,1705666348980,-609.91,0.00024642,2]
[312139846,1705666348992,-500.0,0.00024642,2]
[312139847,1705666349003,-500.0,0.00024642,2]
[312139848,1705666349015,-500.0,0.00024642,2]
[312139849,1705666349026,-500.0,0.00024642,2]
[312139850,1705666349037,-500.0,0.00024642,2]
[312139851,1705666349054,-607.72,0.00024642,2]
[312139852,1705666349065,-500.0,0.00024642,2]
[312139853,1705666349077,-500.0,0.00024642,2]
[312139854,1705666349088,-604.29,0.00024642,2]
[312139855,1705666349102,-767.29,0.00024642,2]
[312139856,1705666349114,-573.87,0.00024642,2]
[312139857,1705666349126,-500.0,0.00024642,2]
[312139858,1705666349138,-508.40159275,0.00024642,2]
[312139859,1705666349149,-500.0,0.00024642,2]
[312139860,1705666349161,-828.77,0.00024642,2]
[312139861,1705666349172,-500.0,0.00024642,2]
[312139862,1705666349185,-500.0,0.00024642,2]
[312139863,1705666349197,-500.0,0.00024642,2]
[312139864,1705666349210,-500.0,0.00024642,2]
[312139865,1705666349221,-500.0,0.00024642,2]
[312139866,1705666349231,-500.0,0.00024642,2]
[312139867,1705666349242,-572.89,0.00024642,2]
[312139868,1705666349254,-500.0,0.00024642,2]
[312139869,1705666349266,-500.0,0.00024642,2]
[312139870,1705666349280,-662.42,0.00024642,2]
[312139871,1705666349290,-500.0,0.00024642,2]
[312139872,1705666349301,-500.0,0.00024642,2]
[312139873,1705666349313,-500.0,0.00024642,2]
[312139874,1705666349325,-402.22188396,0.00024642,2]
[312139875,1705666349336,-692.21,0.00024642,2]
[312139876,1705666349347,-500.0,0.00024642,2]
[312139877,1705666349359,-505.94,0.00024642,2]
[312139878,1705666349370,-700.62,0.00024642,2]
[312139879,1705666349382,-843.53,0.00024642,2]
[312139880,1705666349394,-500.0,0.00024642,2]
[312139881,1705666349406,-561.36,0.00024642,2]
[312139882,1705666349418,-500.0,0.00024642,2]
[312139883,1705666349429,-620.37,0.00024642,2]
[312139884,1705666349442,-500.0,0.00024642,2]
[312139885,1705666349454,-500.0,0.00024642,2]
[312139886,1705666349465,-690.35,0.00024642,2]
[312139887,1705666349477,-500.0,0.00024642,2]
[312139888,1705666349487,-500.0,0.00024642,2]
[312139889,1705666349498,-659.08,0.00024642,2]
[312139890,1705666349510,-500.0,0.00024642,2]
[312139891,1705666349521,-924.43,0.00024642,2]
[312139892,1705666349532,-468.12032205,0.00024642,2]
[312139893,1705666349544,-500.0,0.00024642,2]
[312139894,1705666349555,-500.0,0.00024642,2]
[312139895,1705666349566,-1191.14,0.00024642,2]
[312139896,1705666349578,-500.0,0.00024642,2]
[312139897,1705666349589,-730.5,0.00024642,2]
[312139898,1705666349601,-333.92466456,0.00024642,2]
[312139899,1705666349612,-557.03,0.00024642,2]
[312139900,1705666349623,-664.98,0.00024642,2]
[312139901,1705666349635,-1551.61,0.00024642,2]
[312139902,1705666349646,-500.0,0.00024642,2]
[312139903,1705666349662,-500.0,0.00024642,2]
[312139904,1705666349674,-500.0,0.00024642,2]
[312139905,1705666349688,-261.2433889,0.00024642,2]
[312139906,1705666349699,-1101.59,0.00024642,2]
[312139907,1705666349711,-500.0,0.00024642,2]
[312139908,1705666349722,-500.0,0.00024642,2]
[312139909,1705666349734,-500.0,0.00024642,2]
[312139910,1705666349745,-500.0,0.00024642,2]
[312139911,1705666349756,-629.68,0.00024642,2]
[312139912,1705666349769,-500.0,0.00024642,2]
[312139913,1705666349780,-738.94,0.00024642,2]
[312139914,1705666349792,-500.0,0.00024642,2]
[312139915,1705666349803,-500.0,0.00024642,2]
[312139916,1705666349814,-500.0,0.00024642,2]
[312139917,1705666349826,-810.12,0.00024642,2]
[312139918,1705666349838,-537.48,0.00024642,2]
[312139919,1705666349849,-500.0,0.00024642,2]
[312139920,1705666349864,-500.0,0.00024642,2]
[312139921,1705666349874,-526.16,0.00024642,2]
[312139922,1705666349886,-500.0,0.00024642,2]
[312139923,1705666349897,-603.09,0.00024642,2]
[312139924,1705666349908,-1028.88,0.00024642,2]
[312139925,1705666349920,-500.0,0.00024642,2]
[312139926,1705666349931,-500.0,0.00024642,2]
[312139927,1705666349943,-500.0,0.00024642,2]
[312139928,1705666349955,-500.0,0.00024642,2]
[312139929,1705666349967,-953.72,0.00024642,2]
[312139930,1705666349978,-500.0,0.00024642,2]
[312139931,1705666349991,-711.06,0.00024642,2]
[312139932,1705666350003,-1427.07,0.00024642,2]
[312139933,1705666350014,-618.44,0.00024642,2]
[312139934,1705666350025,-1731.93,0.00024642,2]
[312139935,1705666350036,-747.42,0.00024642,2]
[312139936,1705666350048,-500.0,0.00024642,2]
[312139937,1705666350059,-500.0,0.00024642,2]
[312139938,1705666350070,-500.0,0.00024642,2]
[312139939,1705666350185,-638.91,0.00024642,2]
[312139940,1705666350197,-500.0,0.00024642,2]
[312139941,1705666350208,-500.0,0.00024642,2]
[312139942,1705666350220,-587.67,0.00024642,2]
[312139943,1705666350231,-500.0,0.00024642,2]
[312139944,1705666350242,-500.0,0.00024642,2]
[312139945,1705666350253,-556.3,0.00024642,2]
[312139946,1705666350264,-500.0,0.00024642,2]
[312139947,1705666350275,-500.0,0.00024642,2]
[312139948,1705666350287,-1190.14,0.00024642,2]
[312139949,1705666350298,-500.0,0.00024642,2]
[312139950,1705666350309,-500.0,0.00024642,2]
[312139951,1705666350321,-653.45,0.00024642,2]
[312139952,1705666350332,-565.86,0.00024642,2]
[312139953,1705666350344,-500.0,0.00024642,2]
[312139954,1705666350354,-500.0,0.00024642,2]
[312139955,1705666350365,-536.21772638,0.00024642,2]
[312139956,1705666350377,-594.53,0.00024642,2]
[312139957,1705666350388,-730.94,0.00024642,2]
[312139958,1705666350400,-500.0,0.00024642,2]
[312139959,1705666350411,-500.0,0.00024643,2]
[312139960,1705666350422,-500.0,0.00024643,2]
[312139961,1705666350433,-1439.31,0.00024643,2]
[312139962,1705666350447,-1221.48,0.00024643,2]
[312139963,1705666350458,-2355.38,0.00024643,2]
[312139964,1705666350469,-1913.69,0.00024643,2]
[312139965,1705666350480,-508.5321617,0.00024643,2]
[312139966,1705666350492,-500.0,0.00024643,2]
[312139967,1705666350502,-1389.84,0.00024643,2]
[312139968,1705666350512,-566.35,0.00024643,2]
[312139969,1705666350523,-500.0,0.00024643,2]
[312139970,1705666350534,-834.36,0.00024643,2]
[312139971,1705666350545,-899.48,0.00024643,2]
[312139972,1705666350556,-1018.63,0.00024643,2]
[312139973,1705666350568,-770.66,0.00024643,2]
[312139974,1705666350579,-602.31,0.00024643,2]
[312139975,1705666350591,-543.43,0.00024643,2]
[312139976,1705666350603,-1486.66,0.00024643,2]
[312139977,1705666350615,-1291.26,0.00024643,2]
[312139978,1705666350626,-946.18,0.00024643,2]
[312139979,1705666350638,-1374.09,0.00024643,2]
[312139980,1705666350649,-1903.0,0.00024643,2]
[312139981,1705666350661,-1394.03,0.00024643,2]
[312139982,1705666350672,-500.0,0.00024643,2]
[312139983,1705666350683,-1081.06,0.00024643,2]
[312139984,1705666350694,-613.64,0.00024643,2]
[312139985,1705666350706,-822.5,0.00024643,2]
[312139986,1705666350717,-988.14,0.00024643,2]
[312139987,1705666350728,-1134.32,0.00024643,2]
[312139988,1705666350740,-1114.34,0.00024643,2]
[312139989,1705666350751,-386.45,0.00024643,2]
[312139990,1705666350763,-500.0,0.00024643,2]
[312139991,1705666350774,-500.0,0.00024643,2]
[312139992,1705666350786,-1136.5,0.00024643,2]
[312139993,1705666350797,-657.2,0.00024643,2]
[312139994,1705666350808,-1517.72,0.00024643,2]
[312139995,1705666350819,-1390.83,0.00024643,2]
[312139996,1705666350831,-500.0,0.00024643,2]
[312139997,1705666350842,-624.44,0.00024643,2]
[312139998,1705666350854,-873.54,0.00024643,2]
[312139999,1705666350865,-500.0,0.00024643,2]
[312140000,1705666350877,-500.0,0.00024643,2]
[312140001,1705666350889,-1098.08,0.00024643,2]
[312140002,1705666350899,-1055.03,0.00024643,2]
[312140003,1705666350911,-1465.17,0.00024643,2]
[312140004,1705666350922,-1388.77,0.00024643,2]
[312140005,1705666350933,-751.33,0.00024643,2]
[312140006,1705666350945,-847.66,0.00024643,2]
[312140007,1705666350955,-1716.75,0.00024643,2]
[312140008,1705666350967,-1266.25,0.00024643,2]
[312140009,1705666350978,-1506.4,0.00024643,2]
[312140010,1705666350990,-1094.94,0.00024643,2]
[312140011,1705666351001,-1831.72,0.00024643,2]
[312140012,1705666351011,-1727.3,0.00024643,2]
[312140013,1705666351023,-1056.89,0.00024643,2]
[312140014,1705666351034,-588.15912216,0.00024643,2]
[312140015,1705666351046,-935.85,0.00024643,2]
[312140016,1705666351057,-1066.08,0.00024643,2]
[312140017,1705666351070,-1553.56,0.00024643,2]
[312140018,1705666351082,-2466.3,0.00024643,2]
[312140019,1705666351093,-1630.52,0.00024643,2]
[312140020,1705666351106,-1692.09,0.00024643,2]
[312140021,1705666351117,-1389.04,0.00024643,2]
[312140022,1705666351129,-1366.17,0.00024643,2]
[312140023,1705666351140,-556.18,0.00024657,2]
[312140024,1705666351151,-556.18,0.00024657,2]
[312140025,1705666351163,-556.18,0.00024657,2]
[312140026,1705666351188,-556.18,0.00024657,2]
[312140027,1705666351221,-556.18,0.00024657,2]
[312140028,1705666351233,-556.18,0.00024657,2]
[312140029,1705666351244,-556.18,0.00024657,2]
[312140030,1705666351255,-200.0,0.00024658,2]
[312140031,1705666351267,-250.0,0.00024658,2]
[312140032,1705666351279,-150.0,0.00024658,2]
[312140033,1705666351290,-150.0,0.00024658,2]
[312140034,1705666351301,-150.0,0.00024658,2]
[312140035,1705666351313,-150.0,0.00024658,2]
[312140036,1705666351324,-150.0,0.00024658,2]
[312140037,1705666351335,-150.0,0.00024658,2]
[312140038,1705666351346,-150.0,0.00024658,2]
[312140039,1705666351358,-150.0,0.00024658,2]
[312140040,1705666351369,-150.0,0.00024658,2]
[312140041,1705666351381,-150.0,0.00024658,2]
[312140042,1705666351392,-150.0,0.00024658,2]
[312140043,1705666351403,-150.0,0.00024658,2]
[312140044,1705666351414,-150.0,0.00024658,2]
[312140045,1705666351425,-150.0,0.00024658,2]
[312140046,1705666351438,-150.0,0.00024658,2]
[312140047,1705666351450,-150.0,0.00024658,2]
[312140048,1705666351462,-150.0,0.00024658,2]
[312140049,1705666351474,-150.0,0.00024658,2]
[312140050,1705666351484,-150.0,0.00024658,2]
[312140051,1705666351495,-152.64182422,0.00024658,2]
[312140052,1705666351507,-594756.46,0.0002467,3]
[312140053,1705666351519,-11602.16,0.0002467,3]
[312140054,1705666351530,-40857.84,0.0002467,3]
[312140055,1705666351542,-63903.24,0.0002467,3]
[312140056,1705666351554,-5460.54,0.0002467,3]
[312140057,1705666351564,-209727.47,0.0002467,3]
[312140058,1705666351576,-52374.26,0.0002467,3]
[312140059,1705666351588,-60889.33,0.0002467,3]
[312140060,1705666351599,-19981.93,0.0002467,3]
[312140061,1705666351610,-150.45,0.00024671,2]
[312140062,1705666351622,-432.05,0.0002468,2]
[312140063,1705666351633,-154.86226234,0.00024705,2]
[312140064,1705666351644,-432.05,0.00024853,2]
[312140065,1705666351654,-12068.94,0.00024897,2]
[312140066,1705666351665,-1901.08,0.00024897,2]
[312140067,1705666351677,-975.74,0.00024897,2]
[312140068,1705666351689,-2659.65,0.00024897,2]
[312140069,1705666351701,-500.0,0.00024897,2]
[312140070,1705666351713,-564.95,0.00024897,2]
[312140071,1705666351724,-500.0,0.00024897,2]
[312140072,1705666351741,-1625.11,0.00024897,2]
[312140073,1705666351754,-1446.64,0.00024897,2]
[312140074,1705666351765,-2115.14,0.00024897,2]
[312140075,1705666351777,-1533.66,0.00024897,2]
[312140076,1705666351791,-5142.49,0.00024897,2]
[312140077,1705666351803,-18985.1,0.00024897,2]
[312140078,1705666351815,-689.2,0.00024897,2]
[312140079,1705666351826,-2678.36,0.00024897,2]
[312140080,1705666351837,-1927.81,0.00024897,2]
[312140081,1705666351849,-3236.89,0.00024897,2]
[312140082,1705666351861,-2323.62,0.00024897,2]
[312140083,1705666351872,-3099.95,0.00024897,2]
[312140084,1705666351883,-1604.1,0.00024897,2]
[312140085,1705666351895,-3224.28,0.00024897,2]
[312140086,1705666351905,-626.86,0.00024897,2]
[312140087,1705666351917,-783.31,0.00024897,2]
[312140088,1705666351928,-3676.75,0.00024897,2]
[312140089,1705666351940,-1875.81,0.00024897,2]
[312140090,1705666351953,-838.41,0.00024897,2]
[312140091,1705666351964,-819.65,0.00024897,2]
[312140092,1705666351976,-993.83,0.00024897,2]
[312140093,1705666351987,-1210.28,0.00024897,2]
[312140094,1705666351998,-3394.92,0.00024912,2]
[312140095,1705666352010,-2245.7,0.00024912,2]
[312140096,1705666352021,-2640.33,0.00024912,5]
[312140097,1705666352032,-1564.92,0.00024912,2]
[312140098,1705666352044,-1643.94,0.00024912,2]
[312140099,1705666352055,-15598.58,0.00024912,2]
[312140100,1705666352067,-19754.48,0.00024912,2]
[312140101,1705666352078,-11426.74,0.00024912,2]
[312140102,1705666352090,-1205.31,0.00024912,2]
[312140103,1705666352102,-500.0,0.00024912,2]
[312140104,1705666352114,-5092.13,0.00024912,2]
[312140105,1705666352130,-2505.92,0.00024912,2]
[312140106,1705666352141,-2542.57,0.00024912,2]
[312140107,1705666352154,-1214.32,0.00024912,2]
[312140108,1705666352168,-2516.11,0.00024912,2]
[312140109,1705666352180,-5945.8,0.00024912,2]
[312140110,1705666352192,-47078.31,0.00024912,2]
[312140111,1705666352203,-753.07,0.00024912,2]
[312140112,1705666352215,-3287.55,0.00024912,2]
[312140113,1705666352228,-2887.71,0.00024912,2]
[312140114,1705666352239,-1180.41,0.00024912,2]
[312140115,1705666352251,-1115.89,0.00024912,2]
[312140116,1705666352263,-4394.09,0.00024912,2]
[312140117,1705666352275,-500.0,0.00024912,2]
[312140118,1705666352287,-1102.23,0.00024912,2]
[312140119,1705666352298,-1589.65,0.00024912,2]
[312140120,1705666352310,-34180.49,0.00024912,2]
[312140121,1705666352322,-2952.43,0.00024912,2]
[312140122,1705666352334,-892.05,0.00024912,2]
[312140123,1705666352346,-2360.62,0.00024912,2]
[312140124,1705666352357,-2662.92,0.00024912,2]
[312140125,1705666352369,-4108.99,0.00024912,2]
[312140126,1705666352380,-500.0,0.00024913,2]
[312140127,1705666352391,-500.0,0.00024913,2]
[312140128,1705666352403,-500.0,0.00024913,2]
[312140129,1705666352414,-500.0,0.00024913,2]
[312140130,1705666352427,-465.79942462,0.00024913,2]
[312140131,1705666352438,-500.0,0.00024913,2]
[312140132,1705666352450,-598.8,0.00024913,2]
[312140133,1705666352460,-500.0,0.00024913,2]
[312140134,1705666352471,-543.5,0.00024913,2]
[312140135,1705666352483,-628.05,0.00024913,2]
[312140136,1705666352494,-500.0,0.00024913,2]
[312140137,1705666352506,-960.21,0.00024913,2]
[312140138,1705666352517,-1176.38,0.00024913,2]
[312140139,1705666352529,-278.08,0.00024913,2]
[312140140,1705666352540,-577.3,0.00024913,2]
[312140141,1705666352551,-500.0,0.00024913,2]
[312140142,1705666352563,-500.0,0.00024913,2]
[312140143,1705666352574,-589.13,0.00024913,2]
[312140144,1705666352586,-907.94,0.00024913,2]
[312140145,1705666352597,-915.25,0.00024913,2]
[312140146,1705666352608,-953.2,0.00024913,2]
[312140147,1705666352620,-554.43,0.00024913,2]
[312140148,1705666352631,-500.0,0.00024913,2]
[312140149,1705666352643,-592.33,0.00024913,2]
[312140150,1705666352654,-500.0,0.00024913,2]
[312140151,1705666352666,-865.14,0.00024913,2]
[312140152,1705666352678,-500.0,0.00024913,2]
[312140153,1705666352689,-694.6,0.00024913,2]
[312140154,1705666352700,-634.28,0.00024913,2]
[312140155,1705666352712,-699.21,0.00024913,2]
[312140156,1705666352722,-500.0,0.00024913,2]
[312140157,1705666352735,-500.0,0.00024913,2]
[312140158,1705666352746,-1018.36,0.00024913,2]
[312140159,1705666352757,-988.95,0.00024913,2]
[312140160,1705666352767,-500.0,0.00024913,2]
[312140161,1705666352779,-700.19,0.00024913,2]
[312140162,1705666352791,-513.8931308,0.00024913,2]
[312140163,1705666352803,-500.0,0.00024913,2]
[312140164,1705666352815,-727.89,0.00024913,2]
[312140165,1705666352826,-1090.17,0.00024913,2]
[312140166,1705666352837,-500.0,0.00024913,2]
[312140167,1705666352848,-500.0,0.00024913,2]
[312140168,1705666352860,-1289.78,0.00024913,2]
[312140169,1705666352871,-425.2,0.00024913,2]
[312140170,1705666352882,-1120.95,0.00024913,2]
[312140171,1705666352894,-1300.86,0.00024913,2]
[312140172,1705666352905,-698.1,0.00024913,2]
[312140173,1705666352917,-906.66,0.00024913,2]
[312140174,1705666352928,-500.0,0.00024913,2]
[312140175,1705666352939,-919.21,0.00024913,2]
[312140176,1705666352950,-500.0,0.00024913,2]
[312140177,1705666352961,-500.0,0.00024913,2]
[312140178,1705666352972,-545.64,0.00024913,2]
[312140179,1705666352984,-1384.85,0.00024913,2]
[312140180,1705666352994,-977.33,0.00024913,2]
[312140181,1705666353006,-500.0,0.00024913,2]
[312140182,1705666353018,-500.0,0.00024913,2]
[312140183,1705666353029,-1012.68,0.00024913,2]
[312140184,1705666353041,-1000.0,0.00024913,2]
[312140185,1705666353052,-500.0,0.00024913,2]
[312140186,1705666353062,-1136.47,0.00024913,2]
[312140187,1705666353073,-500.0,0.00024913,2]
[312140188,1705666353083,-785.17,0.00024913,2]
[312140189,1705666353094,-500.0,0.00024913,2]
[312140190,1705666353105,-500.0,0.00024913,2]
[312140191,1705666353116,-307.65,0.00024913,2]
[312140192,1705666353131,-648.64,0.00024913,2]
[312140193,1705666353141,-1005.41,0.00024913,2]
[312140194,1705666353151,-500.0,0.00024913,2]